[Event "German Masters Women 2018"]
[Site "Dresden"]
[Date "2018.08.03"]
[Round "2.2"]
[White "Schneider, Jana"]
[Black "Heinemann, Josefine"]
[Result "1/2-1/2"]
[ECO "B90"]
[WhiteElo "2179"]
[BlackElo "2261"]
[Annotator "NA"]
[PlyCount "148"]
[EventDate "2018.08.04"]
[EventType "tourn"]
[EventCountry "GER"]
[SourceTitle "playchess.com"]
[Source "ChessBase"]
[SourceQuality "1"]
[TimeControl "40/5400+30:1800+30"]

1. e4 {[%emt 1:30:26]} c5 {[%emt 1:30:26]} 2. Nf3 {[%emt 1:30:46]} d6 {[%emt 1:30:52]} 3. d4 {[%emt 1:31:09]} cxd4 {[%emt 1:31:18]} 4. Nxd4 {[%emt 1:31:33]} Nf6 {[%emt 1:31:44]} 5. Nc3 {[%emt 1:31:54]} a6 {[%emt 1:32:11]} 6. Be3 {[%emt 1:32:14]} e5 {[%emt 1:32:29]} 7. Nf3 {[%emt 1:32:32]} Be7 {[%emt 1:32:54]} 8. Bc4 {[%emt 1:32:45]} O-O {[%emt 1:33:17]} 9. O-O {[%emt 1:32:57]} Qc7 {[%emt 1:33:30]} 10. Bb3 {[%emt 1:33:16]} Be6 {[%emt 1:33:54]} 11. Nh4 {[%emt 1:32:45] B90: Sicilian Najdorf: Unusual White 6th moves, 6 Be3 Ng4 and 6 Be3 e5} g6 {[%emt 1:34:05]} 12. Bh6 {[%emt 1:30:31]} (12. Nf3 Re8 13. Ng5 Bc4 14. Re1 Nbd7 15. a4 Qc6 16. Bxc4 Qxc4 17. a5 Qc6 18. Qd3 Rac8 {½-½ (48) Sjugirov,S (2652)-Wojtaszek,R (2738) Batumi 2018}) 12... Re8 {[%emt 1:34:31]} 13. Qd2 {[%emt 1:30:05]} Ng4 {[%emt 1:31:47]} 14. Bg5 {[%emt 1:29:36]} Bxg5 {[%emt 1:32:08]} 15. Qxg5 {[%emt 1:29:57]} Qd8 {[%emt 1:32:34]} 16. Nf3 {[%emt 1:28:46]} Qxg5 {[%emt 1:27:43]} 17. Nxg5 {[%emt 1:29:05]} Nc6 {[%emt 1:22:57]} 18. Nd5 {[%emt 1:17:59]} Bxd5 {[%emt 1:19:43]} 19. Bxd5 {[%emt 1:15:56]} Re7 $146 {[%emt 1:18:12]} 20. Rad1 {[%emt 1:14:05]} Rd8 {[%emt 1:13:37]} 21. c3 {[%emt 0:56:45]} Nf6 {[%emt 1:07:43]} 22. Nf3 {[%emt 0:49:49]} Rc8 {[%emt 1:04:21]} 23. Rd3 $11 {[%emt 0:44:25]} Ne8 {[%emt 0:56:30]} 24. Nd2 {[%emt 0:31:00]} b5 {[%emt 0:53:48]} 25. Rd1 {[%emt 0:29:53]} Rec7 {[%emt 0:50:45]} 26. Nf1 {[%emt 0:26:18]} Ne7 {[%emt 0:48:49]} 27. Bb3 {[%emt 0:24:21]} Kg7 {[%emt 0:46:29]} 28. Ne3 {[%emt 0:20:40]} Rb8 {[%emt 0:42:51]} 29. a3 {[%emt 0:16:18]} a5 {[%emt 0:40:22]} 30. Nc2 {[%emt 0:12:41]} Nc8 {[%emt 0:36:03]} 31. Ne3 {[%emt 0:08:33]} Nb6 {[%emt 0:32:06]} 32. Nd5 {[%emt 0:08:30]} Nxd5 {[%emt 0:32:30]} 33. Bxd5 {[%emt 0:08:02]} Nf6 {[%emt 0:28:28]} 34. f3 {[%emt 0:07:48]} Rb6 {[%emt 0:27:33]} 35. Bb3 {[%emt 0:07:18]} Rcc6 {[%emt 0:25:18]} 36. Bd5 {[%emt 0:06:08]} Nxd5 {[%emt 0:22:44]} 37. Rxd5 {[%emt 0:06:32]} Kf6 {[%emt 0:22:59]} 38. Kf2 {[%emt 0:06:20]} Ke6 {[%emt 0:22:26]} 39. Ke3 {[%emt 0:05:23]} b4 {[%emt 0:18:52]} 40. cxb4 {[%emt 0:00:41]} axb4 {[%emt 0:19:17]} 41. a4 {[%emt 0:00:07]} b3 {[%emt 0:16:43]} 42. a5 {[%emt 0:22:31]} Ra6 {[%emt 0:46:00]} 43. R1d3 {[%emt 0:12:22]} Rc5 {[%emt 0:46:00]} 44. Rxc5 {[%emt 0:12:00]} dxc5 {[%emt 0:46:27]} 45. Rxb3 {[%emt 0:12:22]} Rxa5 {[%emt 0:46:53]} 46. Rb6+ {[%emt 0:12:33]} Ke7 {[%emt 0:46:47]} 47. Kd3 {[%emt 0:12:23]} Ra1 {[%emt 0:46:24]} 48. Kc4 {[%emt 0:11:26]} Rg1 {[%emt 0:46:17]} 49. g4 {[%emt 0:10:56]} Rh1 {[%emt 0:44:55]} 50. Kxc5 {[%emt 0:11:14]} Rxh2 {[%emt 0:45:21]} 51. b4 {[%emt 0:09:54]} Rf2 {[%emt 0:44:47]} 52. Rb7+ {[%emt 0:05:45]} Ke6 {[%emt 0:45:03]} 53. b5 {[%emt 0:05:42]} Rxf3 {[%emt 0:43:13]} 54. Rb8 {[%emt 0:05:55]} Kf6 {[%emt 0:41:10]} 55. Re8 {[%emt 0:04:15]} Rc3+ {[%emt 0:37:20]} 56. Kd6 {[%emt 0:04:12]} Rd3+ {[%emt 0:37:07]} 57. Kc7 {[%emt 0:04:05]} Rc3+ {[%emt 0:37:25]} 58. Kb7 {[%emt 0:04:26]} Rg3 {[%emt 0:36:26]} 59. b6 {[%emt 0:03:28]} Rxg4 {[%emt 0:36:46]} 60. Kc6 {[%emt 0:03:22]} Rxe4 {[%emt 0:37:06]} 61. Kc5 {[%emt 0:02:36]} Re1 {[%emt 0:37:14]} 62. b7 {[%emt 0:03:02]} Rb1 {[%emt 0:37:42]} 63. b8=Q {[%emt 0:03:26]} Rxb8 {[%emt 0:38:10]} 64. Rxb8 {[%emt 0:03:50]} h5 {[%emt 0:37:48]} 65. Kc4 {[%emt 0:02:49]} Kf5 {[%emt 0:38:01]} 66. Rf8 {[%emt 0:01:45]} h4 {[%emt 0:30:38]} 67. Rxf7+ {[%emt 0:01:57]} Kg4 {[%emt 0:30:48]} 68. Kd3 {[%emt 0:02:03]} h3 {[%emt 0:30:53]} 69. Ke4 {[%emt 0:02:06]} g5 {[%emt 0:23:51]} 70. Rh7 {[%emt 0:01:16]} Kg3 {[%emt 0:23:57]} 71. Kxe5 {[%emt 0:01:40]} Kg2 {[%emt 0:23:26]} 72. Kf5 {[%emt 0:02:01]} h2 {[%emt 0:23:52]} 73. Kxg5 {[%emt 0:02:25]} h1=Q {[%emt 0:24:17]} 74. Rxh1 {[%emt 0:02:52]} Kxh1 {[%emt 0:24:42]} 1/2-1/2

[Event "German Masters Women 2018"]
[Site "Dresden"]
[Date "2018.08.03"]
[Round "2.3"]
[White "Sieber, Fiona"]
[Black "Lubbe, Melanie"]
[Result "1-0"]
[ECO "B45"]
[WhiteElo "2290"]
[BlackElo "2338"]
[Annotator "NA"]
[PlyCount "99"]
[EventDate "2018.08.04"]
[EventType "tourn"]
[EventCountry "GER"]
[SourceTitle "playchess.com"]
[Source "ChessBase"]
[SourceQuality "1"]
[TimeControl "40/5400+30:1800+30"]

1. e4 {[%emt 1:30:27]} c5 {[%emt 1:30:26]} 2. Nf3 {[%emt 1:30:53]} e6 {[%emt 1:30:52]} 3. d4 {[%emt 1:31:15]} cxd4 {[%emt 1:31:18]} 4. Nxd4 {[%emt 1:31:39]} Nf6 {[%emt 1:31:43]} 5. Nc3 {[%emt 1:32:04]} Nc6 {[%emt 1:32:05]} 6. Ndb5 {[%emt 1:32:06]} Bc5 {[%emt 1:32:20]} 7. Bf4 {[%emt 1:32:15]} O-O {[%emt 1:32:28] B45: Sizilianisch (Klassisches System)} 8. Bc7 {[%emt 1:32:31]} Qe7 {[%emt 1:32:50]} 9. Bd6 {[%emt 1:32:55]} Bxd6 {[%emt 1:33:15]} 10. Qxd6 {[%emt 1:33:20]} Qd8 {[%emt 1:33:29]} 11. O-O-O {[%emt 1:33:05]} (11. Qd2 a6 12. Nd6 b5 13. a4 b4 14. Nd1 b3 15. c3 {½-½ (35) Deac,B (2572)-Motylev,A (2669) Batumi 2018}) 11... a6 {[%emt 1:32:48]} 12. Nd4 {[%emt 1:32:44]} Qb6 {[%emt 1:32:24]} 13. Nxc6 {[%emt 1:32:50]} bxc6 {[%emt 1:32:49]} 14. f3 {[%emt 1:32:57]} Ne8 {[%emt 1:27:36]} 15. Qd4 {[%emt 1:29:07] [#]} Qc7 $146 {[%emt 1:27:28]} 16. e5 {[%emt 1:22:21]} c5 {[%emt 1:25:17]} 17. Qe3 {[%emt 1:22:25]} Bb7 {[%emt 1:25:18]} 18. f4 {[%emt 1:16:20]} d5 {[%emt 1:16:36]} 19. exd6 {[%emt 1:15:04]} Nxd6 {[%emt 1:17:01]} 20. Qe5 {[%emt 1:12:04]} Rfd8 {[%emt 0:56:53]} 21. Bd3 {[%emt 1:10:02]} Qb6 {[%emt 0:39:19]} 22. Na4 {[%emt 0:55:58]} Qb4 $11 {[%emt 0:35:25]} 23. Nxc5 {[%emt 0:53:36]} Bd5 {[%emt 0:34:50]} 24. Nb3 {[%emt 0:52:37]} a5 {[%emt 0:28:19]} 25. Kb1 {[%emt 0:46:51]} a4 {[%emt 0:25:27]} 26. Qd4 {[%emt 0:43:49]} Rab8 {[%emt 0:16:27]} 27. c3 {[%emt 0:34:56]} Qxd4 {[%emt 0:15:25]} 28. Nxd4 {[%emt 0:35:15]} Bxg2 {[%emt 0:15:42]} 29. Rhe1 {[%emt 0:32:08]} g6 {[%emt 0:15:00]} 30. Rd2 {[%emt 0:18:26]} Bd5 {[%emt 0:15:16]} 31. Nc2 {[%emt 0:18:21]} Ne4 {[%emt 0:05:44]} 32. Bxe4 {[%emt 0:16:34]} Bxe4 {[%emt 0:06:05]} 33. Red1 {[%emt 0:16:34]} Rd5 {[%emt 0:05:49]} 34. Rxd5 {[%emt 0:15:25]} exd5 {[%emt 0:05:59]} 35. Kc1 {[%emt 0:12:39]} Kg7 {[%emt 0:05:13]} 36. Rd4 {[%emt 0:11:52]} Rb6 37. Ne3 {[%emt 0:06:36]} a3 {[%emt 0:02:31]} 38. b4 {[%emt 0:02:59]} Rf6 {[%emt 0:05:06]} 39. b5 {[%emt 0:05:06]} g5 {[%emt 0:01:36]} 40. f5 {[%emt 0:00:12]} Rh6 41. c4 {[%emt 0:19:09]} Rxh2 42. cxd5 {[%emt 0:18:08]} Rh1+ 43. Kd2 {[%emt 0:14:05]} Rh2+ {[%emt 0:09:27]} 44. Kc3 {[%emt 0:13:51]} Bxd5 {[%emt 0:05:42]} 45. Nxd5 {[%emt 0:12:52]} Rxa2 {[%emt 0:05:36]} 46. b6 {[%emt 0:12:44]} Ra1 {[%emt 0:03:54]} 47. Kb3 {[%emt 0:11:30]} h5 {[%emt 0:03:48]} 48. Rb4 {[%emt 0:11:26]} a2 {[%emt 0:03:10]} 49. b7 {[%emt 0:11:29]} Rd1 {[%emt 0:01:57]} 50. Kxa2 {[%emt 0:11:54]} 1-0

[Event "German Masters Women 2018"]
[Site "Dresden"]
[Date "2018.08.03"]
[Round "2.4"]
[White "Fuchs, Judith"]
[Black "Klek, Hanna Marie"]
[Result "0-1"]
[ECO "C45"]
[WhiteElo "2276"]
[BlackElo "2268"]
[Annotator "NA"]
[PlyCount "44"]
[EventDate "2018.08.04"]
[EventType "tourn"]
[EventCountry "GER"]
[SourceTitle "playchess.com"]
[Source "ChessBase"]
[SourceQuality "1"]
[TimeControl "40/5400+30:1800+30"]

1. e4 {[%emt 1:30:26]} e5 {[%emt 1:30:25]} 2. Nf3 {[%emt 1:30:51]} Nc6 {[%emt 1:30:52]} 3. d4 {[%emt 1:31:15]} exd4 {[%emt 1:31:16]} 4. Nxd4 {[%emt 1:31:40]} Qf6 {[%emt 1:31:19]} 5. Nb3 {[%emt 1:29:35]} Qg6 {[%emt 1:31:42]} 6. Qe2 {[%emt 1:28:02]} Nf6 {[%emt 1:31:54]} 7. f3 {[%emt 1:22:24]} a5 {[%emt 1:32:17]} 8. a4 {[%emt 1:16:09]} Be7 {[%emt 1:30:41]} 9. Nc3 {[%emt 1:10:57]} O-O {[%emt 1:30:28]} 10. Nb5 {[%emt 1:05:51]} d5 {[%emt 1:25:38]} 11. Nxc7 {[%emt 0:53:54]} dxe4 {[%emt 1:24:19]} 12. Be3 {[%emt 0:43:22]} Rb8 {[%emt 1:13:37]} 13. O-O-O {[%emt 0:43:03]} Bf5 {[%emt 1:13:16]} 14. Qf2 {[%emt 0:27:46]} (14. Qc4 $142) 14... Rbc8 {[%emt 0:28:16]} 15. Bb6 {[%emt 0:23:43] [#]} (15. g4 $142 Bxg4 16. Rg1 exf3 17. Bd3) 15... e3 $19 {[%emt 1:05:24]} 16. Qe2 {[%emt 0:19:30]} Bd8 {[%emt 1:04:44]} 17. g4 {[%emt 0:19:03]} Bd7 {[%emt 1:01:02]} 18. Nd5 {[%emt 0:06:43]} Nxd5 {[%emt 1:01:17]} 19. Rxd5 {[%emt 0:06:50]} Nb4 {[%emt 0:58:44]} 20. Bc5 {[%emt 0:02:28]} Nxd5 {[%emt 0:59:05]} 21. Bxf8 {[%emt 0:02:49]} Kxf8 {[%emt 0:59:18]} 22. Qd1 {[%emt 0:02:27]} Nb4 {[%emt 0:59:18]} 0-1

[Event "German Masters Women 2018"]
[Site "Dresden"]
[Date "2018.08.03"]
[Round "2.5"]
[White "Schleining, Zoya"]
[Black "Hoolt, Sarah"]
[Result "1/2-1/2"]
[ECO "D53"]
[WhiteElo "2397"]
[BlackElo "2357"]
[Annotator "NA"]
[PlyCount "111"]
[EventDate "2018.08.04"]
[EventType "tourn"]
[EventCountry "GER"]
[SourceTitle "playchess.com"]
[Source "ChessBase"]
[SourceQuality "1"]
[TimeControl "40/5400+30:1800+30"]

1. Nf3 {[%emt 1:30:26]} Nf6 {[%emt 1:30:04]} 2. c4 {[%emt 1:30:44]} e6 {[%emt 1:29:19]} 3. d4 {[%emt 1:30:17]} d5 {[%emt 1:29:33]} 4. Bg5 {[%emt 1:30:29]} c6 {[%emt 1:28:12]} 5. e3 {[%emt 1:30:07]} Nbd7 {[%emt 1:28:20]} 6. Nc3 {[%emt 1:30:12]} h6 {[%emt 1:28:42]} 7. Bh4 {[%emt 1:29:43]} Be7 {[%emt 1:23:41]} 8. Qc2 {[%emt 1:25:16]} a6 {[%emt 1:20:42]} 9. Rd1 {[%emt 1:23:22]} b5 {[%emt 1:19:02]} 10. c5 {[%emt 1:09:33]} a5 {[%emt 0:55:34]} 11. a3 {[%emt 1:01:06]} b4 {[%emt 0:36:32]} 12. Na4 {[%emt 1:00:37]} O-O $11 {[%emt 0:33:36]} 13. Bd3 {[%emt 0:54:48]} Ba6 {[%emt 0:31:57]} 14. O-O {[%emt 0:50:28]} Ne4 {[%emt 0:28:20]} 15. Bxa6 {[%emt 0:37:17]} Rxa6 {[%emt 0:28:46]} 16. Bg3 {[%emt 0:33:35]} Nxg3 {[%emt 0:28:51]} 17. hxg3 {[%emt 0:33:58]} Qb8 {[%emt 0:28:15]} 18. axb4 {[%emt 0:29:40]} Qxb4 {[%emt 0:27:52]} 19. Ra1 {[%emt 0:29:42]} Rb8 {[%emt 0:23:07]} 20. Rfc1 {[%emt 0:22:24]} Qb7 {[%emt 0:19:56]} 21. Ra3 {[%emt 0:21:10]} Ra7 {[%emt 0:18:45]} 22. Rca1 {[%emt 0:21:12]} Qc7 {[%emt 0:18:15]} 23. R1a2 {[%emt 0:19:50]} Bd8 {[%emt 0:16:31]} 24. Rb3 {[%emt 0:18:58]} Rxb3 {[%emt 0:16:00]} 25. Qxb3 {[%emt 0:19:23]} Rb7 {[%emt 0:16:20]} 26. Qc3 {[%emt 0:18:37]} Rb4 {[%emt 0:16:07]} 27. b3 {[%emt 0:18:30]} Qb8 {[%emt 0:15:25]} 28. Ra3 {[%emt 0:18:47]} Bc7 {[%emt 0:14:53]} 29. Qc2 {[%emt 0:14:10]} g6 {[%emt 0:11:12]} 30. Nb2 {[%emt 0:12:55]} e5 {[%emt 0:09:15]} 31. Nd3 {[%emt 0:11:04]} e4 {[%emt 0:09:01]} 32. Nxb4 {[%emt 0:11:26]} axb4 {[%emt 0:08:58]} 33. Ra6 {[%emt 0:11:38]} exf3 {[%emt 0:07:42]} 34. Qa2 {[%emt 0:11:48]} Qc8 {[%emt 0:03:25]} 35. gxf3 {[%emt 0:08:29]} Nb8 {[%emt 0:03:34]} 36. Ra7 {[%emt 0:08:30]} h5 {[%emt 0:03:38]} 37. Kg2 {[%emt 0:08:06]} g5 {[%emt 0:02:43]} 38. Qa4 {[%emt 0:07:26]} h4 {[%emt 0:01:00]} 39. Qxb4 {[%emt 0:07:18]} g4 {[%emt 0:00:08]} 40. fxg4 {[%emt 0:05:06]} hxg3 {[%emt 0:00:32]} 41. Qb7 {[%emt 0:01:43]} Qxg4 {[%emt 0:25:11]} 42. Qxc7 {[%emt 0:31:51]} Qe4+ {[%emt 0:23:58]} 43. Kxg3 {[%emt 0:30:04]} Qg6+ {[%emt 0:24:11]} 44. Kh2 {[%emt 0:29:37]} Qh7+ {[%emt 0:24:28]} 45. Kg2 {[%emt 0:22:05]} Qe4+ {[%emt 0:24:49]} 46. f3 {[%emt 0:10:55]} Qc2+ {[%emt 0:25:09]} 47. Kg1 {[%emt 0:10:13]} Qb1+ {[%emt 0:25:26]} 48. Kf2 {[%emt 0:10:11]} Qc2+ {[%emt 0:25:48]} 49. Ke1 {[%emt 0:09:03]} Qc1+ {[%emt 0:26:12]} 50. Ke2 {[%emt 0:09:03]} Qc2+ {[%emt 0:26:36]} 51. Kf1 {[%emt 0:09:20]} Qb1+ {[%emt 0:26:59]} 52. Kg2 {[%emt 0:08:38]} Qc2+ {[%emt 0:27:22]} 53. Kh1 {[%emt 0:08:00]} Qb1+ {[%emt 0:27:45]} 54. Kg2 {[%emt 0:07:35]} Qc2+ {[%emt 0:28:11]} 55. Kh3 {[%emt 0:07:32]} Qh7+ {[%emt 0:28:21]} 56. Kg2 1/2-1/2

[Event "German Masters Women 2018"]
[Site "Dresden"]
[Date "2018.08.06"]
[Round "3.2"]
[White "Klek, Hanna Marie"]
[Black "Schleining, Zoya"]
[Result "1-0"]
[ECO "B12"]
[WhiteElo "2268"]
[BlackElo "2397"]
[Annotator "NA"]
[PlyCount "131"]
[EventDate "2018.08.04"]
[EventType "tourn"]
[EventCountry "GER"]
[SourceTitle "playchess.com"]
[Source "ChessBase"]
[SourceQuality "1"]
[TimeControl "40/5400+30:1800+30"]

1. e4 {[%emt 1:30:28]} c6 {[%emt 1:30:22]} 2. d4 {[%emt 1:30:53]} d5 {[%emt 1:30:46]} 3. e5 {[%emt 1:31:20]} Bf5 {[%emt 1:31:06]} 4. h4 {[%emt 1:31:44]} h5 {[%emt 1:31:16]} 5. Bd3 {[%emt 1:32:08] LiveBook: 326 Games} Bxd3 {[%emt 1:31:14]} 6. Qxd3 {[%emt 1:32:33]} e6 {[%emt 1:31:26]} 7. Bg5 {[%emt 1:32:59]} Be7 {[%emt 1:30:25]} 8. Nf3 {[%emt 1:33:16]} Nh6 {[%emt 1:30:11]} 9. Nc3 {[%emt 1:33:39]} Nf5 {[%emt 1:29:53]} 10. Bxe7 {[%emt 1:31:20]} Qxe7 {[%emt 1:29:19]} 11. g3 {[%emt 1:31:27]} Nd7 {[%emt 1:22:04]} 12. O-O {[%emt 1:31:31]} O-O-O {[%emt 1:08:00]} 13. Ne2 {[%emt 1:26:41]} Kb8 {[%emt 1:03:51]} 14. Nf4 {[%emt 1:25:29]} Nf8 {[%emt 0:57:51]} 15. c4 $11 {[%emt 1:23:37]} dxc4 {[%emt 0:56:40]} 16. Qxc4 {[%emt 1:22:17]} Ng6 {[%emt 0:52:45]} 17. Nxg6 {[%emt 1:12:22]} fxg6 {[%emt 0:52:35]} 18. Rfd1 {[%emt 1:12:18]} Rd5 {[%emt 0:52:27]} 19. b4 {[%emt 1:11:36]} Rhd8 {[%emt 0:51:52]} 20. Rd3 {[%emt 1:11:00]} Qd7 {[%emt 0:43:18]} 21. Rad1 {[%emt 1:11:11]} Ka8 {[%emt 0:40:03]} 22. Qc3 {[%emt 1:04:59]} Kb8 {[%emt 0:39:44]} 23. Qd2 {[%emt 1:04:55]} Qe7 {[%emt 0:37:37]} 24. Kg2 {[%emt 1:03:23]} R8d7 {[%emt 0:33:28]} 25. a3 {[%emt 1:02:14]} Rd8 {[%emt 0:33:10]} 26. Qf4 {[%emt 1:01:44]} R8d7 {[%emt 0:27:03]} 27. Ng1 {[%emt 0:58:49]} a5 {[%emt 0:24:45]} 28. Ne2 {[%emt 0:49:19]} axb4 {[%emt 0:22:40]} 29. axb4 {[%emt 0:49:43]} Qxb4 {[%emt 0:22:12]} 30. Qg5 {[%emt 0:49:34]} Qe7 {[%emt 0:07:32]} 31. Qxg6 {[%emt 0:49:40]} c5 {[%emt 0:07:13]} 32. Qxh5 {[%emt 0:46:04]} cxd4 {[%emt 0:05:59]} 33. Qf3 {[%emt 0:45:29]} g5 {[%emt 0:05:03]} 34. hxg5 {[%emt 0:37:29]} Qxg5 {[%emt 0:05:30]} 35. Rh1 {[%emt 0:30:23]} Qg7 {[%emt 0:04:56]} 36. Nf4 {[%emt 0:28:16]} Rxe5 {[%emt 0:04:52]} 37. Nxe6 {[%emt 0:27:48]} Rxe6 {[%emt 0:03:40]} 38. Qxf5 {[%emt 0:28:12]} Red6 {[%emt 0:03:04]} 39. Rh4 {[%emt 0:24:40]} Qe7 {[%emt 0:00:48]} 40. Qc5 {[%emt 0:17:01]} Qd8 {[%emt 0:00:34]} 41. Qe5 {[%emt 0:13:47]} Qc7 {[%emt 0:00:33]} 42. Rh8+ {[%emt 0:03:15]} Rd8 {[%emt 0:00:07]} 43. Rxd4 {[%emt 0:02:50]} Rxd4 {[%emt 0:28:13]} 44. Qxd4 {[%emt 0:33:14]} Qc6+ {[%emt 0:27:01]} 45. Kh2 {[%emt 0:33:38]} Rxh8+ {[%emt 0:25:09]} 46. Qxh8+ {[%emt 0:34:03]} Ka7 {[%emt 0:24:58]} 47. Qd4+ {[%emt 0:33:18]} Ka6 {[%emt 0:24:49]} 48. g4 {[%emt 0:33:31]} Qh6+ {[%emt 0:20:27]} 49. Kg3 {[%emt 0:32:10]} b5 {[%emt 0:20:15]} 50. f4 {[%emt 0:29:39]} Ka5 {[%emt 0:19:56]} 51. f5 {[%emt 0:26:13]} Qc1 {[%emt 0:17:38]} 52. f6 {[%emt 0:23:19]} Qc7+ {[%emt 0:16:43]} 53. Qf4 {[%emt 0:22:52]} Qc3+ {[%emt 0:15:38]} 54. Kh4 {[%emt 0:22:11]} b4 {[%emt 0:15:46]} 55. f7 {[%emt 0:21:25]} Qh8+ {[%emt 0:16:16]} 56. Kg3 {[%emt 0:21:44]} Qf8 {[%emt 0:15:39]} 57. Qe5+ {[%emt 0:21:44]} Kb6 {[%emt 0:15:38]} 58. Qe6+ {[%emt 0:21:27]} Kc7 {[%emt 0:13:36]} 59. g5 {[%emt 0:19:59]} Kd8 {[%emt 0:12:42]} 60. Qf6+ {[%emt 0:19:43]} Kd7 {[%emt 0:12:47]} 61. g6 {[%emt 0:19:20]} b3 {[%emt 0:12:52]} 62. g7 {[%emt 0:15:42]} Qb8+ {[%emt 0:10:30]} 63. Qf4 {[%emt 0:16:07]} Qxf4+ {[%emt 0:10:17]} 64. Kxf4 {[%emt 0:16:32]} b2 {[%emt 0:10:39]} 65. f8=Q {[%emt 0:16:55]} b1=Q {[%emt 0:11:01]} 66. Qf5+ {[%emt 0:17:19]} 1-0

[Event "German Masters Women 2018"]
[Site "Dresden"]
[Date "2018.08.06"]
[Round "3.3"]
[White "Lubbe, Melanie"]
[Black "Fuchs, Judith"]
[Result "1/2-1/2"]
[ECO "A13"]
[WhiteElo "2338"]
[BlackElo "2276"]
[Annotator "NA"]
[PlyCount "71"]
[EventDate "2018.08.04"]
[EventType "tourn"]
[EventCountry "GER"]
[SourceTitle "playchess.com"]
[Source "ChessBase"]
[SourceQuality "1"]
[TimeControl "40/5400+30:1800+30"]

1. Nf3 {[%emt 1:30:25]} Nf6 {[%emt 1:30:11]} 2. b3 {[%emt 1:30:50]} e6 {[%emt 1:29:48]} 3. Bb2 {[%emt 1:30:54]} Be7 {[%emt 1:28:10]} 4. e3 {[%emt 1:29:19]} c5 {[%emt 1:27:47]} 5. Be2 {[%emt 1:26:10]} O-O {[%emt 1:26:36]} 6. O-O {[%emt 1:26:36]} Nc6 {[%emt 1:27:20]} 7. c4 {[%emt 1:26:14]} d5 {[%emt 1:25:17]} 8. cxd5 {[%emt 1:22:00]} Nxd5 {[%emt 1:18:46]} 9. d4 {[%emt 1:20:32]} cxd4 {[%emt 1:13:04]} 10. Nxd4 {[%emt 1:20:50]} Nxd4 {[%emt 1:12:40]} 11. Bxd4 {[%emt 1:20:52]} Bd7 {[%emt 1:09:56]} 12. Nd2 $11 {[%emt 1:15:57]} Bf6 {[%emt 0:55:46]} 13. Ne4 {[%emt 1:06:30]} Bxd4 {[%emt 0:55:38]} 14. Qxd4 {[%emt 1:06:55]} Bc6 {[%emt 0:47:02]} 15. Rfd1 {[%emt 1:01:48]} Qe7 {[%emt 0:43:55]} 16. Rd2 {[%emt 0:43:16]} Rfc8 17. Rad1 {[%emt 0:38:57]} h6 {[%emt 0:31:17]} 18. Qe5 {[%emt 0:33:31]} Rd8 {[%emt 0:22:59]} 19. Ng3 {[%emt 0:27:20]} Re8 {[%emt 0:17:08]} 20. h3 {[%emt 0:19:18]} Qf6 {[%emt 0:16:23]} 21. Qxf6 {[%emt 0:16:38]} Nxf6 {[%emt 0:16:50]} 22. Bc4 {[%emt 0:15:45]} Kf8 {[%emt 0:14:57]} 23. Ne2 {[%emt 0:14:01]} Ne4 {[%emt 0:11:41]} 24. Rc2 {[%emt 0:13:58]} Red8 {[%emt 0:09:55]} 25. Rxd8+ {[%emt 0:13:19]} Rxd8 {[%emt 0:10:23]} 26. Nd4 {[%emt 0:13:24]} Be8 {[%emt 0:09:14]} 27. Bd3 {[%emt 0:08:56]} Nd6 {[%emt 0:06:25]} 28. f4 {[%emt 0:08:30]} Rc8 {[%emt 0:06:11]} 29. Rd2 {[%emt 0:08:01]} Ke7 {[%emt 0:05:05]} 30. Kf2 {[%emt 0:05:34]} f6 {[%emt 0:03:28]} 31. g4 {[%emt 0:05:34]} g5 {[%emt 0:03:19]} 32. Kf3 {[%emt 0:03:28]} Rc3 {[%emt 0:02:40]} 33. Ne2 {[%emt 0:02:32]} Rc8 {[%emt 0:01:48]} 34. Nd4 {[%emt 0:02:57]} Rc3 {[%emt 0:02:14]} 35. Ne2 {[%emt 0:03:16]} Rc8 {[%emt 0:01:23]} 36. Nd4 {[%emt 0:03:09]} 1/2-1/2

[Event "German Masters Women 2018"]
[Site "Dresden"]
[Date "2018.08.06"]
[Round "3.4"]
[White "Heinemann, Josefine"]
[Black "Sieber, Fiona"]
[Result "1-0"]
[ECO "A13"]
[WhiteElo "2261"]
[BlackElo "2290"]
[Annotator "NA"]
[PlyCount "115"]
[EventDate "2018.08.04"]
[EventType "tourn"]
[EventCountry "GER"]
[SourceTitle "playchess.com"]
[Source "ChessBase"]
[SourceQuality "1"]
[TimeControl "40/5400+30:1800+30"]

1. Nf3 {[%emt 1:30:27]} Nf6 {[%emt 1:30:24]} 2. c4 {[%emt 1:30:54]} e6 {[%emt 1:30:49]} 3. Nc3 {[%emt 1:31:21]} d5 {[%emt 1:25:29]} 4. e3 {[%emt 1:28:54]} c5 {[%emt 1:23:49]} 5. cxd5 {[%emt 1:28:56]} Nxd5 {[%emt 1:22:45]} 6. Nxd5 {[%emt 1:19:32]} Qxd5 {[%emt 1:22:48] LiveBook: 8 Games} 7. b3 {[%emt 1:18:44]} Be7 {[%emt 1:20:50]} 8. Bb2 {[%emt 1:19:08]} O-O {[%emt 1:21:04]} 9. Bc4 {[%emt 1:17:38]} Qd7 {[%emt 1:19:38]} 10. Ne5 {[%emt 1:13:19]} Qc7 {[%emt 1:19:52]} 11. O-O {[%emt 1:09:07]} Bf6 $14 {[%emt 1:12:30]} 12. d4 {[%emt 1:07:19]} Nc6 {[%emt 1:07:06]} 13. Nxc6 {[%emt 1:03:44]} Qxc6 {[%emt 1:04:59]} 14. d5 {[%emt 1:02:30]} exd5 {[%emt 1:05:20]} 15. Bxd5 {[%emt 1:02:56]} Qb6 {[%emt 1:05:38]} 16. Bxf6 {[%emt 1:02:39]} Qxf6 {[%emt 1:06:06]} 17. Qc2 {[%emt 1:00:06]} Qe7 {[%emt 0:38:28]} 18. Rac1 {[%emt 0:56:48]} Be6 {[%emt 0:38:18]} 19. Bxe6 {[%emt 0:55:06]} fxe6 {[%emt 0:34:42]} 20. Qxc5 {[%emt 0:55:29]} Qxc5 {[%emt 0:35:08]} 21. Rxc5 {[%emt 0:55:54]} Rac8 {[%emt 0:33:11]} 22. Rfc1 {[%emt 0:53:16]} Rxc5 {[%emt 0:33:36]} 23. Rxc5 {[%emt 0:53:41]} Rd8 {[%emt 0:34:03]} 24. g4 {[%emt 0:51:18]} Rd2 {[%emt 0:32:34]} 25. a4 {[%emt 0:49:17]} b6 {[%emt 0:31:44]} 26. Rc4 {[%emt 0:45:57]} Rb2 {[%emt 0:27:33]} 27. b4 {[%emt 0:43:16]} a6 {[%emt 0:27:59]} 28. Kg2 {[%emt 0:42:58]} Kf7 {[%emt 0:25:51]} 29. h4 {[%emt 0:39:32]} Ra2 {[%emt 0:17:30]} 30. Rc6 {[%emt 0:37:08]} Rxa4 {[%emt 0:17:35]} 31. Rxb6 {[%emt 0:37:33]} a5 {[%emt 0:17:58]} 32. bxa5 {[%emt 0:37:51]} Rxg4+ {[%emt 0:17:19]} 33. Kh3 {[%emt 0:37:51]} Ra4 {[%emt 0:17:44]} 34. a6 {[%emt 0:37:59]} Kf6 {[%emt 0:17:59]} 35. Kg3 {[%emt 0:36:51]} Kf5 {[%emt 0:15:42]} 36. f3 {[%emt 0:35:28]} h6 {[%emt 0:12:31]} 37. e4+ {[%emt 0:32:21]} Kf6 {[%emt 0:12:20]} 38. h5 {[%emt 0:30:05]} Ra5 {[%emt 0:07:37]} 39. f4 {[%emt 0:29:10]} Ra4 {[%emt 0:04:46]} 40. f5 {[%emt 0:26:44]} Kg5 {[%emt 0:04:09]} 41. fxe6 {[%emt 0:27:08]} Ra3+ {[%emt 0:02:14]} 42. Kf2 {[%emt 0:27:31]} Kf6 {[%emt 0:02:17]} 43. e5+ {[%emt 0:21:35]} Ke7 {[%emt 0:00:07]} 44. Rb7+ {[%emt 0:19:42]} Kxe6 {[%emt 0:00:25]} 45. Rxg7 {[%emt 0:20:08]} Kxe5 {[%emt 0:00:12]} 46. Rg6 {[%emt 0:20:34]} Kf4 {[%emt 0:20:02]} 47. Ke2 {[%emt 0:50:43]} Ra5 {[%emt 0:20:12]} 48. Rxh6 {[%emt 0:51:08]} Kg5 {[%emt 0:20:34]} 49. Rc6 {[%emt 0:51:35]} Kxh5 {[%emt 0:20:49]} 50. Kd3 {[%emt 0:52:01]} Ra4 {[%emt 0:15:31]} 51. Kc3 {[%emt 0:52:26]} Kg5 {[%emt 0:15:42]} 52. Kb3 {[%emt 0:52:54]} Ra1 {[%emt 0:15:26]} 53. Kb4 {[%emt 0:53:11]} Kf4 {[%emt 0:14:05]} 54. Kc5 {[%emt 0:53:27]} Ke5 {[%emt 0:13:29]} 55. Kb6 {[%emt 0:53:42]} Kd5 {[%emt 0:13:05]} 56. Kb7 {[%emt 0:54:07]} Ra2 {[%emt 0:07:51]} 57. Rb6 {[%emt 0:54:32]} Rh2 {[%emt 0:05:46]} 58. a7 {[%emt 0:54:51]} 1-0